fUST/lending_fUST_20250709
["ID","MTS","AMOUNT","RATE_DAILY","PERIOD"]
[370463424,1752030645435,-460.0,0.00020821,2]
[370463426,1752030645444,-460.0,0.00020821,2]
[370463428,1752030645454,-460.0,0.00020821,2]
[370463430,1752030645464,-493.89,0.00020821,2]
[370463432,1752030645473,-716.8,0.00020821,2]
[370463434,1752030645483,-460.0,0.00020821,2]
[370463436,1752030645493,-460.0,0.00020821,2]
[370463438,1752030645502,-2497.07,0.00020821,2]
[370463440,1752030645512,-817.54,0.00020821,2]
[370463441,1752030645522,-460.0,0.00020821,2]
[370463443,1752030645531,-460.0,0.00020821,2]
[370463445,1752030645541,-1321.78,0.00020821,2]
[370463447,1752030645551,-1500.0,0.00020824,2]
[370463449,1752030645561,-1502.53433863,0.00020824,2]
[370463451,1752030645570,-1500.0,0.00020824,2]
[370463453,1752030645580,-328.99751484,0.00020833,2]
[370463455,1752030645594,-300.924213,0.00020885,2]
[370463457,1752030645603,-420.0,0.00020899,2]
[370463459,1752030645613,-407.0,0.00020913,2]
[370463460,1752030645622,-408.797,0.00020913,2]
[370463462,1752030645636,-4192.3358309,0.00020934,4]
[370463464,1752030645646,-300.924213,0.00020981,2]
[370463466,1752030645655,-163.737447,0.00021,2]
[370463468,1752030645667,-300.924213,0.00021077,2]
[370463470,1752030645677,-151.0,0.00021095,2]
[370463472,1752030645686,-151.0,0.00021095,2]
[370463474,1752030645696,-160.37638523,0.00021095,2]
[370463476,1752030645706,-460.0,0.00021095,2]
[370463478,1752030645715,-460.0,0.00021095,2]
[370463480,1752030645725,-460.0,0.00021095,2]
[370463482,1752030645736,-844.48,0.00021095,2]
[370463484,1752030645746,-460.0,0.00021095,2]
[370463485,1752030645756,-460.0,0.00021095,2]
[370463487,1752030645765,-648.07,0.00021095,2]
[370463489,1752030645775,-792.68,0.00021095,2]
[370463491,1752030645784,-540.47,0.00021095,2]
[370463493,1752030645794,-623.43,0.00021095,2]
[370463495,1752030645804,-490.56,0.00021095,2]
[370463497,1752030645814,-460.0,0.00021095,2]
[370463499,1752030645823,-460.0,0.00021095,2]
[370463501,1752030645832,-460.0,0.00021095,2]
[370463502,1752030645842,-181.81112796,0.00021095,2]
[370463504,1752030645851,-601.1,0.00021095,2]
[370463506,1752030645861,-1963.24,0.00021095,2]
[370463508,1752030645871,-460.0,0.00021095,2]
[370463510,1752030645882,-460.0,0.00021095,2]
[370463512,1752030645893,-460.0,0.00021095,2]
[370463514,1752030645904,-1140.04,0.00021095,2]
[370463516,1752030645915,-460.0,0.00021095,2]
[370463518,1752030645924,-1309.24,0.00021095,2]
[370463520,1752030645934,-1242.26,0.00021095,2]
[370463522,1752030645943,-568.58,0.00021095,2]
[370463524,1752030645953,-708.77,0.00021095,2]
[370463527,1752030645962,-1810.72,0.00021095,2]
[370463530,1752030645973,-665.57,0.00021095,2]
[370463531,1752030645983,-944.45,0.00021095,2]
[370463533,1752030645993,-460.0,0.00021095,2]
[370463535,1752030646002,-2201.33,0.00021095,2]
[370463537,1752030646012,-164.23047007,0.00021095,2]
[370463539,1752030646022,-460.0,0.00021095,2]
[370463541,1752030646032,-460.0,0.00021095,2]
[370463543,1752030646042,-493.89,0.00021095,2]
[370463545,1752030646052,-716.8,0.00021095,2]
[370463546,1752030646062,-460.0,0.00021095,2]
[370463548,1752030646072,-460.0,0.00021095,2]
[370463550,1752030646082,-2497.07,0.00021095,2]
[370463552,1752030646091,-817.54,0.00021095,2]
[370463554,1752030646101,-460.0,0.00021095,2]
[370463556,1752030646110,-460.0,0.00021095,2]
[370463558,1752030646120,-1321.78,0.00021095,2]
[370463560,1752030646129,-179.875072,0.00021107,4]
[370463561,1752030646139,-4192.3358309,0.00021141,4]
[370463563,1752030646149,-215.0738,0.00021168,2]
[370463565,1752030646159,-300.924213,0.00021173,2]
[370463567,1752030646169,-151.0,0.000212,3]
[370463569,1752030646179,-151.0,0.000212,4]
[370463571,1752030646188,-300.924213,0.00021269,2]
[370463572,1752030646199,-151.0,0.000213,3]
[370463574,1752030646208,-253.85503544,0.00021332,2]
[370463576,1752030646218,-4192.3358309,0.00021348,5]
[370463578,1752030646228,-300.924213,0.00021364,2]
[370463580,1752030646238,-460.0,0.00021369,2]
[370463582,1752030646248,-429.41213337,0.00021369,2]
[370463584,1752030646258,-1715.93088495,0.00021369,2]
[370463586,1752030646267,-460.0,0.00021369,2]
[370463588,1752030646278,-193.25243221,0.00021369,2]
[370463590,1752030646288,-772.2367191,0.00021369,2]
[370463593,1752030646309,-460.0,0.00021369,2]
[370463595,1752030646321,-844.48,0.00021369,2]
[370463597,1752030646331,-460.0,0.00021369,2]
[370463598,1752030646344,-488.12360242,0.00021369,2]
[370463600,1752030646353,-648.07,0.00021369,2]
[370463602,1752030646364,-792.68,0.00021369,2]
[370463604,1752030646375,-540.47,0.00021369,2]
[370463606,1752030646385,-623.43,0.00021369,2]
[370463608,1752030646395,-490.56,0.00021369,2]
[370463610,1752030646405,-460.0,0.00021369,2]
[370463612,1752030646415,-460.0,0.00021369,2]
[370463614,1752030646425,-460.0,0.00021369,2]
[370463616,1752030646434,-601.1,0.00021369,2]
[370463618,1752030646445,-1963.24,0.00021369,2]
[370463620,1752030646456,-460.0,0.00021369,2]
[370463622,1752030646467,-460.0,0.00021369,2]
[370463624,1752030646477,-460.0,0.00021369,2]
[370463625,1752030646487,-1140.04,0.00021369,2]
[370463627,1752030646497,-460.0,0.00021369,2]
[370463629,1752030646507,-1309.24,0.00021369,2]
[370463631,1752030646518,-1242.26,0.00021369,2]
[370463633,1752030646528,-568.58,0.00021369,2]
[370463635,1752030646539,-708.77,0.00021369,2]
[370463637,1752030646549,-1810.72,0.00021369,2]
[370463639,1752030646559,-665.57,0.00021369,2]
[370463640,1752030646569,-944.45,0.00021369,2]
[370463642,1752030646579,-460.0,0.00021369,2]
[370463644,1752030646593,-2201.33,0.00021369,2]
[370463646,1752030646603,-489.62139871,0.00021369,2]
[370463647,1752030646612,-460.0,0.00021369,2]
[370463649,1752030646622,-493.89,0.00021369,2]
[370463651,1752030646632,-716.8,0.00021369,2]
[370463652,1752030646643,-460.0,0.00021369,2]
[370463654,1752030646653,-460.0,0.00021369,2]
[370463656,1752030646664,-2497.07,0.00021369,2]
[370463657,1752030646677,-817.54,0.00021369,2]
[370463659,1752030646688,-460.0,0.00021369,2]
[370463661,1752030646698,-460.0,0.00021369,2]
[370463663,1752030646708,-1321.78,0.00021369,2]
[370463665,1752030646718,-2000.0,0.00021372,2]
[370463666,1752030646727,-504.3431761,0.00021372,2]
[370463668,1752030646738,-1793.07097102,0.000214,2]
[370463670,1752030646748,-242.75838258,0.00021444,2]
[370463671,1752030646758,-300.924213,0.0002146,2]
[370463673,1752030646769,-168.0,0.00021476,2]
[370463675,1752030646779,-234324.44948587,0.00021499,4]
[370463686,1752030646920,-266.4448124,0.00021499,4]
[370463727,1752030647434,-460.0,0.00019178,2]
[370463729,1752030647444,-469.18697463,0.00019178,2]
[370463731,1752030647455,-460.0,0.00019178,2]
[370463733,1752030647464,-460.0,0.00019178,2]
[370463734,1752030647474,-460.0,0.00019178,2]
[370463736,1752030647485,-460.0,0.00019452,2]
[370463738,1752030647494,-422.65,0.00019452,2]
[370463740,1752030647504,-460.0,0.00019726,2]
[370463741,1752030647514,-199.86,0.0002,2]
[370463743,1752030647524,-2839.97098146,0.00021499,4]
[370463748,1752030647577,-542.76689706,0.00019178,2]
[370463750,1752030647590,-460.0,0.00019178,2]
[370463752,1752030647601,-460.0,0.00019452,2]
[370463754,1752030647610,-94.4633401,0.00019452,2]
[370463756,1752030647622,-365.5366599,0.00019452,2]
[370463758,1752030647632,-107.42267385,0.00021499,4]
[370463759,1752030647644,-351.59094771,0.00021499,4]
[370463761,1752030647656,-2952.45936885,0.00021499,4]
[370463764,1752030647674,-787.5,0.00021499,4]
[370466676,1752030777968,426.978016,0.00013699,2]
[370466681,1752031718372,79208.79707235,0.00016209,2]
[370466728,1752031832087,-300.0,0.00019177,2]
[370466730,1752031832097,-352.5536802,0.00019177,2]
[370466820,1752031838155,-67.44525334,0.00019177,2]
[370466821,1752031838165,-467.89264417,0.00019178,2]
[370466822,1752031838175,-460.0,0.00019178,2]
[370466823,1752031838184,-460.0,0.00019178,2]
[370466824,1752031838193,-460.69411909,0.00019178,2]
[370466825,1752031838203,-460.0,0.00019178,2]
[370466826,1752031838214,-463.87445045,0.00019178,2]
[370466827,1752031838223,-460.0,0.00019178,2]
[370466828,1752031838236,-446.91164476,0.00019178,2]
[370466829,1752031838246,-460.0,0.00019178,2]
[370466830,1752031838256,-460.0,0.00019178,2]
[370466831,1752031838265,-460.0,0.00019178,2]
[370466832,1752031838275,-460.0,0.00019178,2]
[370466833,1752031838284,-460.0,0.00019178,2]
[370466834,1752031838295,-472.6222911,0.00019178,2]
[370466835,1752031838305,-460.0,0.00019178,2]
[370466836,1752031838314,-355.66201522,0.00019178,2]
[370466837,1752031838325,-460.0,0.00019178,2]
[370466838,1752031838335,-460.0,0.00019178,2]
[370466839,1752031838344,-460.0,0.00019178,2]
[370466840,1752031838354,-460.0,0.00019178,2]
[370466841,1752031838363,-460.0,0.00019178,2]
[370466842,1752031838374,-460.0,0.00019178,2]
[370466843,1752031838384,-460.0,0.00019178,2]
[370466844,1752031838396,-407.51219643,0.00019178,2]
[370466845,1752031838405,-460.0,0.00019178,2]
[370466846,1752031838417,-460.0,0.00019178,2]
[370466847,1752031838428,-460.0,0.00019178,2]
[370466848,1752031838437,-460.0,0.00019178,2]
[370466849,1752031838446,-460.0,0.00019178,2]
[370466850,1752031838457,-410.84710506,0.00019178,2]
[370466851,1752031838467,-460.0,0.00019178,2]
[370466852,1752031838478,-460.0,0.00019178,2]
[370466853,1752031838488,-460.0,0.00019178,2]
[370466854,1752031838498,-460.0,0.00019178,2]
[370466855,1752031838508,-460.0,0.00019178,2]
[370466856,1752031838518,-330.68003145,0.00019178,2]
[370466857,1752031838527,-460.0,0.00019178,2]
[370466858,1752031838538,-460.0,0.00019178,2]
[370466859,1752031838547,-460.0,0.00019178,2]
[370466860,1752031838558,-506.74,0.00019178,2]
[370466861,1752031838567,-460.0,0.00019178,2]
[370466862,1752031838577,-460.0,0.00019178,2]
[370466863,1752031838588,-461.6532991,0.00019178,2]
[370466864,1752031838598,-460.0,0.00019178,2]
[370466865,1752031838609,-460.0,0.00019178,2]
[370466866,1752031838619,-460.0,0.00019178,2]
[370466867,1752031838628,-468.16342656,0.00019178,2]
[370466868,1752031838637,-460.0,0.00019178,2]
[370466869,1752031838647,-460.0,0.00019178,2]
[370466870,1752031838658,-515.27,0.00019178,2]
[370466871,1752031838668,-481.24664277,0.00019178,2]
[370466872,1752031838678,-460.0,0.00019178,2]
[370466873,1752031838688,-460.0,0.00019178,2]
[370466874,1752031838697,-460.0,0.00019178,2]
[370466875,1752031838707,-460.0,0.00019178,2]
[370466876,1752031838716,-460.0,0.00019178,2]
[370466877,1752031838725,-460.0,0.00019178,2]
[370466878,1752031838735,-460.0,0.00019178,2]
[370466879,1752031838745,-460.0,0.00019178,2]
[370466880,1752031838754,-460.0,0.00019178,2]
[370466881,1752031838763,-460.0,0.00019178,2]
[370466882,1752031838773,-460.0,0.00019178,2]
[370466883,1752031838782,-460.0,0.00019178,2]
[370466884,1752031838792,-460.0,0.00019178,2]
[370466885,1752031838801,-397.52988345,0.00019178,2]
[370466886,1752031838810,-460.0,0.00019178,2]
[370466887,1752031838820,-460.0,0.00019178,2]
[370466888,1752031838829,-445.96846333,0.00019178,2]
[370466889,1752031838839,-460.0,0.00019178,2]
[370466890,1752031838848,-500.0,0.00019178,2]
[370466891,1752031838858,-460.0,0.00019178,2]
[370466892,1752031838867,-356.89162962,0.00019178,2]
[370466893,1752031838876,-698.68,0.00019178,2]
[370466894,1752031838886,-558.65274081,0.00019178,2]
[370466895,1752031838895,-460.0,0.00019178,2]
[370466896,1752031838904,-466.63132801,0.00019178,2]
[370466897,1752031838914,-460.0,0.00019178,2]
[370466898,1752031838924,-460.0,0.00019178,2]
[370466899,1752031838933,-460.0,0.00019178,2]
[370466900,1752031838942,-460.0,0.00019178,2]
[370466901,1752031838951,-460.0,0.00019178,2]
[370466902,1752031838961,-460.0,0.00019178,2]
[370466903,1752031838972,-460.0,0.00019178,2]
[370466904,1752031838989,-156.82510986,0.00019178,2]
[370466905,1752031838998,-460.0,0.00019178,2]
[370466906,1752031839008,-461.86307939,0.00019178,2]
[370466907,1752031839017,-460.0,0.00019178,2]
[370466908,1752031839027,-576.38311803,0.00019178,2]
[370466909,1752031839037,-469.94389054,0.00019178,2]
[370466910,1752031839046,-460.90341789,0.00019178,2]
[370466911,1752031839055,-460.0,0.00019178,2]
[370466912,1752031839065,-460.0,0.00019178,2]
[370466913,1752031839075,-460.0,0.00019178,2]
[370466914,1752031839084,-443.42058949,0.00019178,2]
[370466915,1752031839094,-469.40054788,0.00019178,2]
[370466916,1752031839103,-729.57,0.00019178,2]
[370466917,1752031839113,-460.0,0.00019178,2]
[370466918,1752031839122,-460.0,0.00019178,2]
[370466919,1752031839131,-460.0,0.00019178,2]
[370466920,1752031839141,-460.0,0.00019178,2]
[370466921,1752031839151,-460.0,0.00019178,2]
[370466922,1752031839161,-460.0,0.00019178,2]
[370466923,1752031839170,-460.0,0.00019178,2]
[370466924,1752031839179,-466.63576569,0.00019178,2]
[370466925,1752031839188,-460.0,0.00019178,2]
[370466926,1752031839197,-460.0,0.00019178,2]
[370466927,1752031839206,-800.18,0.00019178,2]
[370466928,1752031839215,-462.42166744,0.00019178,2]
[370466929,1752031839225,-2192.26,0.00019178,2]
[370466930,1752031839234,-820.58,0.00019178,2]
[370466931,1752031839243,-460.0,0.00019178,2]
[370466932,1752031839253,-460.0,0.00019178,2]
[370466933,1752031839263,-1350.23,0.00019178,2]
[370466934,1752031839273,-460.0,0.00019178,2]
[370466935,1752031839282,-460.0,0.00019178,2]
[370466936,1752031839291,-460.0,0.00019178,2]
[370466937,1752031839300,-460.0,0.00019178,2]
[370466938,1752031839309,-461.45933676,0.00019178,2]
[370466939,1752031839318,-460.0,0.00019178,2]
[370466940,1752031839328,-460.0,0.00019178,2]
[370466941,1752031839339,-460.0,0.00019178,2]
[370466942,1752031839350,-460.0,0.00019178,2]
[370466943,1752031839358,-665.45,0.00019178,2]
[370466944,1752031839367,-460.0,0.00019178,2]
[370466945,1752031839377,-464.10169179,0.00019178,2]
[370466946,1752031839386,-460.0,0.00019178,2]
[370466947,1752031839396,-460.0,0.00019178,2]
[370466948,1752031839406,-552.95,0.00019178,2]
[370466949,1752031839415,-661.99,0.00019178,2]
[370466950,1752031839425,-552.93,0.00019178,2]
[370466951,1752031839435,-460.0,0.00019178,2]
[370466952,1752031839445,-460.0,0.00019178,2]
[370466953,1752031839457,-460.0,0.00019178,2]
[370466954,1752031839466,-460.0,0.00019178,2]
[370466955,1752031839475,-460.0,0.00019178,2]
[370466956,1752031839485,-460.0,0.00019178,2]
[370466957,1752031839494,-460.0,0.00019178,2]
[370466958,1752031839503,-460.0,0.00019178,2]
[370466959,1752031839512,-460.0,0.00019178,2]
[370466960,1752031839522,-463.82029014,0.00019178,2]
[370466961,1752031839531,-460.0,0.00019178,2]
[370466962,1752031839540,-460.0,0.00019178,2]
[370466963,1752031839550,-460.0,0.00019178,2]
[370466964,1752031839559,-1397.17,0.00019178,2]
[370466965,1752031839568,-1468.45,0.00019178,2]
[370466966,1752031839579,-460.0,0.00019178,2]
[370466967,1752031839588,-581.39434244,0.00019178,2]
[370466968,1752031839598,-460.0,0.00019178,2]
[370466969,1752031839607,-1275.68,0.00019178,2]
[370466970,1752031839617,-460.0,0.00019178,2]
[370466971,1752031839626,-461.99695917,0.00019178,2]
[370466972,1752031839635,-507.42,0.00019178,2]
[370466973,1752031839645,-460.0,0.00019178,2]
[370466974,1752031839654,-460.0,0.00019178,2]
[370466975,1752031839663,-460.0,0.00019178,2]
[370466976,1752031839673,-460.0,0.00019178,2]
[370466977,1752031839683,-462.64675766,0.00019178,2]
[370466978,1752031839693,-460.0,0.00019178,2]
[370466979,1752031839703,-463.99822761,0.00019178,2]
[370466980,1752031839714,-462.6850279,0.00019178,2]
[370466981,1752031839724,-1974.19,0.00019178,2]
[370466982,1752031839733,-465.39251871,0.00019178,2]
[370466983,1752031839743,-460.0,0.00019178,2]
[370466984,1752031839753,-460.0,0.00019178,2]
[370466985,1752031839762,-460.0,0.00019178,2]
[370466986,1752031839772,-460.0,0.00019178,2]
[370466987,1752031839781,-460.0,0.00019178,2]
[370466988,1752031839792,-460.0,0.00019178,2]
[370466989,1752031839801,-460.0,0.00019178,2]
[370466990,1752031839811,-460.0,0.00019178,2]
[370466991,1752031839820,-300.60320184,0.00019178,2]
[370466992,1752031839829,-460.0,0.00019178,2]
[370466993,1752031839839,-460.0,0.00019178,2]
[370466994,1752031839848,-460.0,0.00019178,2]
[370466995,1752031839857,-482.38,0.00019178,2]
[370466996,1752031839866,-460.0,0.00019178,2]
[370466997,1752031839876,-228.63945414,0.00019178,2]
[370466998,1752031839885,-500.59,0.00019178,2]
[370466999,1752031839895,-460.0,0.00019178,2]
[370467000,1752031839904,-460.0,0.00019178,2]
[370467001,1752031839914,-460.0,0.00019178,2]
[370467002,1752031839924,-416.02974482,0.00019178,2]
[370467003,1752031839934,-460.0,0.00019178,2]
[370467004,1752031839944,-508.63616032,0.00019178,2]
[370467005,1752031839953,-460.0,0.00019178,2]
[370467006,1752031839963,-460.0,0.00019178,2]
[370467007,1752031839972,-745.34,0.00019178,2]
[370467008,1752031839982,-460.0,0.00019178,2]
[370467009,1752031839993,-813.63,0.00019178,2]
[370467010,1752031840002,-460.0,0.00019178,2]
[370467011,1752031840012,-460.0,0.00019178,2]
[370467012,1752031840022,-461.37396523,0.00019178,2]
[370467013,1752031840031,-460.0,0.00019178,2]
[370467014,1752031840041,-460.0,0.00019178,2]
[370467015,1752031840051,-2593.76,0.00019178,2]
[370467016,1752031840060,-461.80884989,0.00019178,2]
[370467017,1752031840070,-1064.35,0.00019178,2]
[370467018,1752031840079,-460.0,0.00019178,2]
[370467019,1752031840089,-460.0,0.00019178,2]
[370467020,1752031840099,-460.0,0.00019178,2]
[370467021,1752031840108,-460.0,0.00019178,2]
[370467022,1752031840117,-460.0,0.00019178,2]
[370467023,1752031840259,-460.0,0.00019178,2]
[370467024,1752031840269,-460.0,0.00019178,2]
[370467025,1752031840284,-460.0,0.00019178,2]
[370467026,1752031840294,-460.0,0.00019178,2]
[370467027,1752031840303,-460.0,0.00019178,2]
[370467028,1752031840313,-460.56335982,0.00019178,2]
[370467029,1752031840323,-460.0,0.00019178,2]
[370467030,1752031840332,-460.0,0.00019178,2]
[370467031,1752031840342,-460.0,0.00019178,2]
[370467032,1752031840351,-460.0,0.00019178,2]
[370467033,1752031840361,-460.0,0.00019178,2]
[370467034,1752031840370,-460.0,0.00019178,2]
[370467035,1752031840379,-829.82,0.00019178,2]
[370467036,1752031840388,-460.0,0.00019178,2]
[370467037,1752031840398,-460.0,0.00019178,2]
[370467038,1752031840407,-546.59,0.00019178,2]
[370467039,1752031840417,-2869.71,0.00019178,2]
[370467040,1752031840427,-750.27,0.00019178,2]
[370467041,1752031840436,-460.0,0.00019178,2]
[370467042,1752031840446,-460.0,0.00019178,2]
[370467044,1752031840456,-460.0,0.00019178,2]
[370467045,1752031840465,-460.0,0.00019178,2]
[370467047,1752031840475,-460.0,0.00019178,2]
[370467048,1752031840485,-460.0,0.00019178,2]
[370467050,1752031840495,-943.82,0.00019178,2]
[370467052,1752031840504,-460.0,0.00019178,2]
[370467054,1752031840514,-460.0,0.00019178,2]
[370467056,1752031840524,-460.0,0.00019178,2]
[370467058,1752031840534,-460.0,0.00019178,2]
[370467060,1752031840543,-471.47209868,0.00019178,2]
[370467062,1752031840552,-460.0,0.00019178,2]
[370467064,1752031840561,-460.0,0.00019178,2]
[370467066,1752031840570,-460.0,0.00019178,2]
[370467067,1752031840580,-460.0,0.00019178,2]
[370467069,1752031840589,-460.0,0.00019178,2]
[370467071,1752031840599,-460.0,0.00019178,2]
[370467073,1752031840608,-460.0,0.00019178,2]
[370467075,1752031840618,-460.0,0.00019178,2]
[370467077,1752031840628,-460.0,0.00019178,2]
[370467079,1752031840637,-460.0,0.00019178,2]
[370467081,1752031840647,-460.0,0.00019178,2]
[370467083,1752031840657,-460.0,0.00019178,2]
[370467085,1752031840666,-500.0,0.00019178,2]
[370467087,1752031840676,-176.051627,0.00019178,2]
[370467089,1752031840685,-214.5447018,0.00019352,2]
[370467091,1752031840695,-193.51187413,0.00019399,2]
[370467093,1752031840706,-188.09,0.00019442,3]
[370467095,1752031840715,-564.31,0.00019442,3]
[370467097,1752031840725,-460.0,0.00019452,2]
[370467099,1752031840735,-530.61135614,0.00019452,2]
[370467101,1752031840744,-460.0,0.00019452,2]
[370467103,1752031840754,-474.5353023,0.00019452,2]
[370467105,1752031840763,-460.0,0.00019452,2]
[370467107,1752031840772,-460.0,0.00019452,2]
[370467109,1752031840782,-324.06205132,0.00019452,2]
[370467111,1752031840791,-460.0,0.00019452,2]
[370467113,1752031840801,-460.0,0.00019452,2]
[370467115,1752031840811,-460.0,0.00019452,2]
[370467117,1752031840820,-460.0,0.00019452,2]
[370467119,1752031840829,-542.45053929,0.00019452,2]
[370467121,1752031840839,-460.0,0.00019452,2]
[370467123,1752031840849,-460.0,0.00019452,2]
[370467125,1752031840859,-460.0,0.00019452,2]
[370467127,1752031840868,-460.0,0.00019452,2]
[370467129,1752031840879,-460.0,0.00019452,2]
[370467132,1752031840888,-460.0,0.00019452,2]
[370467133,1752031840898,-460.0,0.00019452,2]
[370467135,1752031840907,-460.0,0.00019452,2]
[370467137,1752031840916,-462.35713046,0.00019452,2]
[370467139,1752031840927,-460.0,0.00019452,2]
[370467141,1752031840936,-460.0,0.00019452,2]
[370467143,1752031840945,-469.89836284,0.00019452,2]
[370467146,1752031840955,-506.74,0.00019452,2]
[370467147,1752031840965,-460.0,0.00019452,2]
[370467150,1752031840977,-460.0,0.00019452,2]
[370467151,1752031840990,-470.80325457,0.00019452,2]
[370467153,1752031840999,-460.0,0.00019452,2]
[370467155,1752031841008,-560.79743469,0.00019452,2]
[370467157,1752031841019,-460.0,0.00019452,2]
[370467159,1752031841030,-237.17240886,0.00019452,2]
[370467161,1752031841040,-575.04756073,0.00019452,2]
[370467163,1752031841049,-460.0,0.00019452,2]
[370467165,1752031841059,-460.0,0.00019452,2]
[370467167,1752031841068,-460.0,0.00019452,2]
[370467169,1752031841077,-460.0,0.00019452,2]
[370467171,1752031841086,-460.0,0.00019452,2]
[370467173,1752031841095,-460.0,0.00019452,2]
[370467175,1752031841105,-460.0,0.00019452,2]
[370467177,1752031841114,-466.63479276,0.00019452,2]
[370467179,1752031841124,-528.82663815,0.00019452,2]
[370467181,1752031841133,-460.0,0.00019452,2]
[370467183,1752031841143,-698.68,0.00019452,2]
[370467186,1752031841152,-460.0,0.00019452,2]
[370467187,1752031841161,-460.0,0.00019452,2]
[370467189,1752031841171,-460.0,0.00019452,2]
[370467191,1752031841180,-460.0,0.00019452,2]
[370467194,1752031841191,-469.57868457,0.00019452,2]
[370467195,1752031841201,-460.0,0.00019452,2]
[370467197,1752031841211,-460.0,0.00019452,2]
[370467199,1752031841220,-590.10378647,0.00019452,2]
[370467200,1752031841230,-729.57,0.00019452,2]
[370467201,1752031841239,-460.0,0.00019452,2]
[370467202,1752031841249,-460.0,0.00019452,2]
[370467204,1752031841259,-460.0,0.00019452,2]
[370467205,1752031841269,-470.27777783,0.00019452,2]
[370467206,1752031841278,-460.0,0.00019452,2]
[370467207,1752031841287,-211.6603477,0.00019452,2]
[370467208,1752031841296,-460.0,0.00019452,2]
[370467209,1752031841306,-800.18,0.00019452,2]
[370467210,1752031841315,-2192.26,0.00019452,2]
[370467211,1752031841324,-820.58,0.00019452,2]
[370467212,1752031841333,-460.0,0.00019452,2]
[370467213,1752031841343,-1350.23,0.00019452,2]
[370467214,1752031841353,-460.0,0.00019452,2]
[370467215,1752031841363,-460.0,0.00019452,2]
[370467216,1752031841373,-460.0,0.00019452,2]
[370467217,1752031841382,-245.33393681,0.00019452,2]
[370467218,1752031841392,-460.0,0.00019452,2]
[370467219,1752031841402,-460.0,0.00019452,2]
[370467220,1752031841413,-460.0,0.00019452,2]
[370467221,1752031841423,-665.45,0.00019452,2]
[370467222,1752031841433,-460.0,0.00019452,2]
[370467223,1752031841442,-460.0,0.00019452,2]
[370467224,1752031841452,-552.95,0.00019452,2]
[370467225,1752031841461,-661.99,0.00019452,2]
[370467226,1752031841470,-552.93,0.00019452,2]
[370467227,1752031841480,-460.0,0.00019452,2]
[370467228,1752031841489,-460.0,0.00019452,2]
[370467229,1752031841500,-566.20492236,0.00019452,2]
[370467230,1752031841509,-364.15080532,0.00019452,2]
[370467231,1752031841519,-460.0,0.00019452,2]
[370467232,1752031841528,-460.0,0.00019452,2]
[370467233,1752031841538,-460.0,0.00019452,2]
[370467234,1752031841547,-460.0,0.00019452,2]
[370467235,1752031841558,-460.0,0.00019452,2]
[370467236,1752031841568,-460.0,0.00019452,2]
[370467237,1752031841578,-1397.17,0.00019452,2]
[370467238,1752031841587,-1468.45,0.00019452,2]
[370467239,1752031841597,-460.0,0.00019452,2]
[370467240,1752031841606,-1275.68,0.00019452,2]